bitfinex/quotes_BTCUSD_20241023
["timestamp","ask_amount","ask_price","bid_price","bid_amount"]
[1729681488328,0.0015858,66448.0,66447.0,0.44976201]
[1729681488538,0.0015858,66448.0,66447.0,0.45976201]
[1729681489852,0.0015858,66448.0,66447.0,0.45776201]
[1729681490796,0.0015858,66448.0,66447.0,0.44647473]
[1729681490934,0.0015858,66448.0,66447.0,0.52536201]
[1729681491168,0.0015858,66448.0,66447.0,0.52536184]
[1729681491629,0.0015858,66448.0,66447.0,0.45774438]
[1729681492959,0.0015858,66448.0,66447.0,0.44774438]
[1729681493148,0.0015858,66448.0,66447.0,0.45774438]
[1729681493634,0.0015858,66448.0,66447.0,0.45856738]
[1729681493858,0.0015858,66448.0,66447.0,0.55700176]
[1729681494092,0.0015858,66448.0,66447.0,0.62618484]
[1729681494324,0.0015858,66448.0,66447.0,0.55856738]
[1729681494537,0.0015858,66448.0,66447.0,0.49064756]
[1729681494766,0.0015858,66448.0,66447.0,0.48721318]
[1729681494993,0.0015858,66448.0,66447.0,0.49221318]
[1729681495215,0.0245858,66448.0,66447.0,0.49221318]
[1729681495457,0.0245858,66448.0,66447.0,0.44716208]
[1729681495692,0.0245858,66448.0,66447.0,0.49221318]
[1729681496373,0.0245858,66448.0,66447.0,0.60361848]
[1729681496600,0.0245858,66448.0,66447.0,0.60561848]
[1729681496824,0.0015858,66448.0,66447.0,0.60561848]
[1729681497261,0.0015858,66448.0,66447.0,0.62818484]
[1729681497465,0.0015858,66448.0,66447.0,0.62613495]
[1729681497687,0.0015858,66448.0,66447.0,0.51472965]
[1729681498750,0.0015858,66448.0,66447.0,0.5167164]
[1729681498959,0.0015858,66448.0,66447.0,0.6281217]
[1729681500221,0.0015858,66448.0,66447.0,0.56056738]
[1729681500647,0.0015858,66448.0,66447.0,0.6261217]
[1729681501287,0.0015858,66448.0,66447.0,0.62810634]
[1729681502026,0.0015858,66448.0,66447.0,0.62609534]
[1729681502247,0.0015858,66448.0,66447.0,0.55855202]
[1729681502467,0.0015858,66448.0,66447.0,0.56055202]
[1729681503100,0.0015858,66448.0,66447.0,0.54929773]
[1729681503321,0.0015858,66448.0,66447.0,0.56055132]
[1729681503780,0.0015858,66448.0,66447.0,0.62809464]
[1729681503992,0.0015858,66448.0,66447.0,0.56055132]
[1729681504655,0.0015858,66448.0,66447.0,0.60557]
[1729681504856,0.0015858,66448.0,66447.0,0.62809464]
[1729681505065,0.0015858,66448.0,66447.0,0.56055132]
[1729681505285,0.0015858,66448.0,66447.0,0.62809464]
[1729681505509,0.0015858,66448.0,66447.0,0.55855132]
[1729681506170,0.0015858,66448.0,66447.0,0.6035661]
[1729681506406,0.0015858,66448.0,66447.0,0.55855132]
[1729681506905,0.0015858,66448.0,66447.0,0.62809464]
[1729681507155,0.0015858,66448.0,66447.0,0.76201438]
[1729681507370,0.0015858,66448.0,66447.0,0.65060908]
[1729681508919,0.0015858,66448.0,66447.0,0.67312352]
[1729681509205,0.0015858,66448.0,66447.0,0.56055132]
[1729681510078,0.0015858,66448.0,66447.0,0.67195662]
[1729681512119,0.0015858,66448.0,66447.0,0.80689335]
[1729681512617,0.0015858,66448.0,66447.0,0.67195662]
[1729681512781,0.0015858,66448.0,66447.0,0.80689085]
[1729681513021,0.0015858,66448.0,66447.0,0.67195412]
[1729681513252,0.0015858,66448.0,66447.0,0.66070303]
[1729681513599,0.0015858,66448.0,66447.0,0.67195414]
[1729681513911,0.0015858,66448.0,66447.0,0.68320527]
[1729681516058,0.001646,66462.0,66460.0,0.19296562]
[1729681516271,0.001646,66462.0,66460.0,0.46612586]
[1729681516706,0.001646,66462.0,66461.0,0.01356562]
[1729681516912,0.001646,66462.0,66461.0,0.17532056]
[1729681517412,0.001646,66462.0,66461.0,0.17532626]
[1729681520099,0.001646,66462.0,66461.0,0.26923495]
[1729681521183,0.001646,66462.0,66461.0,0.26923027]
[1729681524019,0.001646,66462.0,66461.0,0.26622158]
[1729681524644,0.001646,66462.0,66461.0,0.27238742]
[1729681524883,0.001646,66462.0,66461.0,0.27238395]
[1729681525612,0.001646,66462.0,66461.0,0.27238449]
[1729681526048,0.001646,66462.0,66461.0,0.31732329]
[1729681526667,0.001646,66462.0,66461.0,0.27238449]
[1729681527532,0.001646,66462.0,66461.0,0.31732329]
[1729681527763,0.001646,66462.0,66461.0,0.27238449]
[1729681528418,0.001646,66462.0,66461.0,0.31732329]
[1729681528690,0.001646,66462.0,66461.0,0.31732534]
[1729681528866,0.001646,66462.0,66461.0,0.50633176]
[1729681529085,0.001646,66462.0,66461.0,0.46139184]
[1729681529532,0.001646,66462.0,66461.0,0.50633176]
[1729681529981,0.001646,66462.0,66461.0,0.50633845]
[1729681531576,0.001646,66462.0,66461.0,0.46139184]
[1729681531993,0.001646,66462.0,66461.0,0.50635736]
[1729681532201,0.001646,66462.0,66461.0,0.50635749]
[1729681532619,0.001646,66462.0,66461.0,0.46139184]
[1729681533254,0.001646,66462.0,66461.0,0.52881176]
[1729681533463,0.001646,66462.0,66461.0,0.46139184]
[1729681533679,0.001646,66462.0,66461.0,0.52881176]
[1729681534108,0.001646,66462.0,66461.0,0.45939184]
[1729681534361,0.001646,66462.0,66461.0,0.1733207]
[1729681534570,0.084046,66462.0,66461.0,0.1733207]
[1729681534786,0.084046,66462.0,66461.0,0.17175508]
[1729681535510,0.107046,66462.0,66461.0,0.16175508]
[1729681535931,0.107046,66462.0,66461.0,0.16176962]
[1729681536382,0.107046,66462.0,66461.0,0.16176961]
[1729681537679,0.107046,66462.0,66461.0,0.16333523]
[1729681537926,0.024646,66462.0,66461.0,0.16333523]
[1729681539717,0.024646,66462.0,66461.0,0.16334111]
[1729681540211,0.024646,66462.0,66461.0,0.16534111]
[1729681540536,0.001646,66462.0,66461.0,0.16834993]
[1729681540739,0.001646,66462.0,66461.0,0.16634993]
[1729681540945,0.001646,66462.0,66461.0,0.16334111]
[1729681541433,0.203946,66462.0,66461.0,0.16177549]
[1729681541865,0.203946,66462.0,66461.0,0.16334111]
[1729681543415,0.203946,66462.0,66461.0,0.15206943]
[1729681543602,0.203946,66462.0,66461.0,0.16334033]
[1729681544771,0.104646,66462.0,66461.0,0.16334033]
[1729681551078,0.104646,66462.0,66461.0,0.16177471]
[1729681551207,0.203946,66462.0,66461.0,0.16177471]
[1729681551655,0.203946,66462.0,66461.0,0.0112709]
[1729681551656,0.20738038,66462.0,66461.0,0.0112709]
[1729681553233,0.20738038,66462.0,66457.0,0.001646]
[1729681553234,0.023,66461.0,66457.0,0.001646]
[1729681553450,0.10438038,66462.0,66458.0,0.15050381]
[1729681553451,0.023,66459.0,66458.0,0.15050381]
[1729681553658,0.2158053,66459.0,66458.0,0.15050381]
[1729681560415,0.1044,66459.0,66458.0,0.15050381]
[1729681565940,0.023,66459.0,66458.0,0.15050381]
[1729681566189,0.023,66461.0,66458.0,0.15050381]
[1729681568416,0.023,66461.0,66460.0,0.1114053]
[1729681568674,0.023,66461.0,66460.0,0.15050381]
[1729681569338,0.023,66461.0,66460.0,0.26190911]
[1729681569579,0.001646,66462.0,66461.0,0.00156562]
[1729681569803,0.001646,66462.0,66461.0,0.15206943]
[1729681570717,0.001646,66462.0,66461.0,0.23567833]
[1729681571166,0.001646,66462.0,66461.0,0.33206943]
[1729681577199,0.001646,66462.0,66461.0,0.37708933]
[1729681579453,0.001646,66462.0,66461.0,0.33206943]
[1729681579902,0.001646,66462.0,66461.0,0.37708933]
[1729681580338,0.001646,66462.0,66461.0,0.33206943]
[1729681581654,0.001646,66462.0,66461.0,0.37712975]
[1729681581894,0.001646,66462.0,66461.0,0.29652975]
[1729681585437,0.001646,66462.0,66461.0,0.296528]
[1729681588284,0.001646,66462.0,66461.0,0.4079333]
[1729681589582,0.001646,66462.0,66461.0,0.41413559]
[1729681589812,0.001646,66462.0,66461.0,0.46197702]
[1729681590063,0.001646,66462.0,66461.0,0.52956488]
[1729681590296,0.001646,66462.0,66461.0,0.55209417]
[1729681590537,0.001646,66462.0,66461.0,0.46197702]
[1729681591005,0.001646,66462.0,66461.0,0.2661061]
[1729681591231,0.001646,66462.0,66461.0,0.33368645]
[1729681591768,0.001646,66462.0,66461.0,0.33525207]
[1729681591995,0.001646,66462.0,66461.0,0.21808416]
[1729681592206,0.001646,66462.0,66461.0,0.19252113]
[1729681592880,0.001646,66462.0,66461.0,0.14746943]
[1729681593536,0.001646,66462.0,66461.0,0.19252113]
[1729681593827,0.001646,66462.0,66461.0,0.14746943]
[1729681594004,0.001646,66462.0,66461.0,0.19252113]
[1729681594234,0.001646,66462.0,66461.0,0.14746943]
[1729681597540,0.001646,66462.0,66461.0,0.14486424]
[1729681599339,0.001646,66462.0,66461.0,0.18991389]
[1729681599597,0.001646,66462.0,66461.0,0.19155989]
[1729681600445,0.001646,66462.0,66461.0,0.14651024]
[1729681600714,0.001646,66462.0,66461.0,0.19155989]
[1729681602031,0.001646,66462.0,66461.0,0.14651024]
[1729681602925,0.001646,66462.0,66461.0,0.14951921]
[1729681603122,0.001646,66462.0,66461.0,0.30968472]
[1729681604053,0.001646,66462.0,66461.0,0.24211024]
[1729681604267,0.001646,66462.0,66461.0,0.32097093]
[1729681604495,0.001646,66462.0,66461.0,0.25339645]
[1729681605827,0.001646,66462.0,66461.0,0.34349576]
[1729681607609,0.001646,66462.0,66461.0,0.34353952]
[1729681607838,0.001646,66462.0,66461.0,0.34353951]
[1729681608514,0.001646,66462.0,66461.0,0.25339645]
[1729681608743,0.024646,66462.0,66461.0,0.24638717]
[1729681608958,0.024646,66462.0,66461.0,0.15623083]
[1729681612672,0.024646,66462.0,66461.0,0.14494462]
[1729681613952,0.024646,66462.0,66461.0,0.19002635]
[1729681614406,0.024646,66462.0,66461.0,0.14494462]
[1729681614611,0.024646,66462.0,66461.0,0.20130482]
[1729681614846,0.02446491,66462.0,66461.0,0.20130482]
[1729681615705,0.00146491,66462.0,66461.0,0.20286974]
[1729681615936,0.00146491,66462.0,66461.0,0.15778801]
[1729681617818,0.00146491,66462.0,66461.0,0.25288801]
[1729681618054,0.00146491,66462.0,66461.0,0.36551214]
[1729681618281,0.00146491,66462.0,66461.0,0.25288801]
[1729681618510,0.00146491,66462.0,66461.0,0.36566602]
[1729681618744,0.00146491,66462.0,66461.0,0.36566449]
[1729681618972,0.00146491,66462.0,66461.0,0.25288801]
[1729681619203,0.00146491,66462.0,66461.0,0.25288616]
[1729681620814,0.00146491,66462.0,66461.0,0.36565734]
[1729681621028,0.00146491,66462.0,66461.0,0.25288616]
[1729681621956,0.00146491,66462.0,66461.0,0.24161024]
[1729681622168,0.00146491,66462.0,66461.0,0.25288577]
[1729681622373,0.00146491,66462.0,66461.0,0.25288549]
[1729681623073,0.00146491,66462.0,66461.0,0.33919421]
[1729681623295,0.00146491,66462.0,66461.0,0.33618549]
[1729681624196,0.00146491,66462.0,66461.0,0.34618549]
[1729681624415,0.00146491,66462.0,66461.0,0.58133445]
[1729681624887,0.00146491,66462.0,66461.0,0.44618549]
[1729681625108,0.00146491,66462.0,66461.0,0.36131987]
[1729681625334,0.00146491,66462.0,66461.0,0.47429079]
[1729681625766,0.00146491,66462.0,66461.0,0.55389079]
[1729681628925,0.00146491,66462.0,66461.0,0.68916058]
[1729681629159,0.00146491,66462.0,66461.0,0.69115328]
[1729681630922,0.00146491,66462.0,66461.0,0.80255858]
[1729681631171,0.00146491,66462.0,66461.0,0.66728879]
[1729681631410,0.00146491,66462.0,66461.0,0.55588349]
[1729681631645,0.00146491,66462.0,66461.0,0.66728879]
[1729681632097,0.00146491,66462.0,66461.0,0.55588349]
[1729681632335,0.00146491,66462.0,66461.0,0.66728879]
[1729681632786,0.00146491,66462.0,66461.0,0.65602084]
[1729681632996,0.00146491,66462.0,66461.0,0.6672819]
[1729681633424,0.00146491,66462.0,66461.0,0.5558766]
[1729681633646,0.00146491,66462.0,66461.0,0.54461554]
[1729681633854,0.00146491,66462.0,66461.0,0.65602084]
[1729681635015,0.00146491,66462.0,66461.0,0.66203884]
[1729681635233,0.00146491,66462.0,66461.0,0.6732987]
[1729681638571,0.00146491,66462.0,66461.0,0.5618934]
[1729681640337,0.00146491,66462.0,66461.0,0.6732987]
[1729681640538,0.00146491,66462.0,66461.0,0.5618934]
[1729681644742,0.00146491,66462.0,66461.0,0.69693018]
[1729681645401,0.00146491,66462.0,66461.0,0.68567032]
[1729681645609,0.00146491,66462.0,66461.0,0.69692806]
[1729681645839,0.00146491,66462.0,66461.0,0.69693009]
[1729681646460,0.00146491,66462.0,66461.0,0.69692303]
[1729681646901,0.00146491,66462.0,66461.0,0.56189331]
[1729681648035,0.00146491,66462.0,66461.0,0.69692007]
[1729681648257,0.00146491,66462.0,66461.0,0.80832537]
[1729681648493,0.00146491,66462.0,66461.0,0.56189331]
[1729681648933,0.00146491,66462.0,66461.0,0.67329861]
[1729681649185,0.00146491,66462.0,66461.0,0.56189331]
[1729681649427,0.00146491,66462.0,66461.0,0.67329861]
[1729681651202,0.00146491,66462.0,66461.0,0.80831315]
[1729681651431,0.00146491,66462.0,66461.0,0.67329861]
[1729681651648,0.00146491,66462.0,66461.0,0.56189331]
[1729681652104,0.00146491,66462.0,66461.0,0.67329861]
[1729681652528,0.00146491,66462.0,66461.0,0.55587531]
[1729681652738,0.00146491,66462.0,66461.0,0.65602084]
[1729681652966,0.00146491,66462.0,66461.0,0.66729139]
[1729681653456,0.00146491,66462.0,66461.0,0.8022986]
[1729681653663,0.00146491,66462.0,66461.0,0.6908933]
[1729681654079,0.00146491,66462.0,66461.0,0.8022986]
[1729681655411,0.00146491,66462.0,66461.0,0.6908933]
[1729681655626,0.00146491,66462.0,66461.0,0.66729139]
[1729681656295,0.00146491,66462.0,66461.0,0.65602084]
[1729681656500,0.00146491,66462.0,66461.0,0.66729762]
[1729681659573,0.00146491,66462.0,66461.0,0.55589232]
[1729681659827,0.00146491,66462.0,66461.0,0.66729762]
[1729681660148,0.00146491,66462.0,66461.0,0.65602084]
[1729681660266,0.00146491,66462.0,66461.0,0.66730243]
[1729681660483,0.00146491,66462.0,66461.0,0.55589713]
[1729681660689,0.00146491,66462.0,66461.0,0.66730243]
[1729681660903,0.00146491,66462.0,66461.0,0.55589713]
[1729681661765,0.00146491,66462.0,66461.0,0.66730243]
[1729681667373,0.00146491,66462.0,66461.0,0.66730338]
[1729681667798,0.00146491,66462.0,66461.0,0.6673033]
[1729681668031,0.00146491,66462.0,66461.0,0.555898]
[1729681671123,0.00146491,66462.0,66461.0,0.55589741]
[1729681675664,0.00146491,66462.0,66461.0,0.66730271]
[1729681676543,0.00146491,66462.0,66461.0,0.55589741]
[1729681677410,0.00146491,66462.0,66461.0,0.66730271]
[1729681677638,0.00146491,66462.0,66461.0,0.55589741]
[1729681678496,0.00146491,66462.0,66461.0,0.54461554]
[1729681678720,0.00146491,66462.0,66461.0,0.55589735]
[1729681681211,0.00146491,66462.0,66461.0,0.54461554]
[1729681681367,0.00146491,66462.0,66461.0,0.55589746]
[1729681684491,0.00146491,66462.0,66461.0,0.55589803]
[1729681686010,0.00146491,66462.0,66461.0,0.66730333]
[1729681686227,0.001648,66463.0,66462.0,0.21106562]
[1729681686438,0.001648,66463.0,66462.0,0.37285192]
[1729681687590,0.001648,66463.0,66462.0,0.43477124]
[1729681687849,0.001648,66463.0,66462.0,0.42348875]
[1729681688489,0.001648,66463.0,66462.0,0.44605325]
[1729681694750,0.0807,66476.0,66462.0,0.44605325]
[1729681694751,0.02521875,66476.0,66466.0,0.01356562]
[1729681694971,0.0935,66479.0,66462.0,0.43248763]
[1729681694972,0.22556561,66499.0,66483.0,0.00156562]
[1729681695219,0.22556561,66499.0,66483.0,0.15206943]
[1729681695436,0.024704,66491.0,66490.0,0.00156562]
[1729681695648,0.115904,66491.0,66490.0,0.19716633]
[1729681697316,0.115904,66491.0,66490.0,0.15206943]
[1729681697996,0.195804,66491.0,66490.0,0.15206943]
[1729681698378,0.001704,66491.0,66490.0,0.38891639]
[1729681698598,0.1791,66498.0,66497.0,0.00156562]
[1729681698804,0.1791,66498.0,66497.0,0.15206943]
[1729681698998,0.1791,66498.0,66497.0,0.27475608]
[1729681699403,0.1791,66498.0,66497.0,0.16335078]
[1729681704599,0.1791,66498.0,66497.0,0.16178516]
[1729681704808,0.3143283,66498.0,66497.0,0.16178516]
[1729681705710,0.3143283,66498.0,66497.0,0.1617541]
[1729681705915,0.202923,66498.0,66497.0,0.1617541]
[1729681709866,0.179923,66498.0,66497.0,0.16331972]
[1729681710316,0.179923,66498.0,66497.0,0.1617541]
[1729681710532,0.179923,66498.0,66497.0,0.44411972]
[1729681711002,0.179923,66498.0,66497.0,0.4425541]
[1729681712422,0.179923,66498.0,66497.0,0.43130381]
[1729681713009,0.179923,66498.0,66497.0,0.44255406]
[1729681714074,0.179923,66498.0,66497.0,0.44411968]
[1729681714508,0.000823,66498.0,66497.0,0.44411968]
[1729681716217,0.000823,66498.0,66497.0,0.43286943]
[1729681716585,0.000823,66498.0,66497.0,0.44412105]
[1729681719819,0.000823,66498.0,66497.0,0.44412557]
[1729681721350,0.000823,66498.0,66497.0,0.55553087]
[1729681724667,0.000823,66498.0,66497.0,0.44412557]
[1729681724871,0.000823,66498.0,66497.0,0.53414904]
[1729681725342,0.000823,66498.0,66497.0,0.53408668]
[1729681725540,0.000823,66498.0,66497.0,0.44412557]
[1729681725759,0.000823,66498.0,66497.0,0.48911014]
[1729681726200,0.168023,66498.0,66497.0,0.48754452]
[1729681726523,0.191023,66498.0,66497.0,0.44255995]
[1729681726937,0.191023,66498.0,66497.0,0.44257236]
[1729681727753,0.077623,66498.0,66497.0,0.44257236]
[1729681727964,0.000823,66498.0,66497.0,0.44257236]
[1729681730400,0.000823,66498.0,66497.0,0.4425729]
[1729681733702,0.000823,66498.0,66497.0,0.44257298]
[1729681737534,0.000823,66498.0,66497.0,0.44257408]
[1729681738504,0.000823,66498.0,66497.0,0.48919245]
[1729681738657,0.000823,66498.0,66497.0,0.5250397]
[1729681738865,0.000823,66498.0,66497.0,0.68609324]
[1729681739289,0.000823,66498.0,66497.0,0.68809324]
[1729681739490,0.000823,66498.0,66497.0,0.6205397]
[1729681740899,0.000823,66498.0,66497.0,0.62653894]
[1729681741989,0.000823,66498.0,66497.0,0.61854011]
[1729681742414,0.000823,66498.0,66497.0,0.62054011]
[1729681743371,0.000823,66498.0,66497.0,0.61854011]
[1729681743512,0.000823,66498.0,66497.0,0.62054011]
[1729681743729,0.000823,66498.0,66497.0,0.62053863]
[1729681744591,0.000823,66498.0,66497.0,0.63180727]
[1729681744794,0.000823,66498.0,66497.0,0.62980727]
[1729681745002,0.000823,66498.0,66497.0,0.61853807]
[1729681745946,0.000823,66498.0,66497.0,0.62053807]
[1729681746360,0.000823,66498.0,66497.0,0.61853807]
[1729681748927,0.000823,66498.0,66497.0,0.72994337]
[1729681749142,0.000823,66498.0,66497.0,0.73194337]
[1729681750473,0.000823,66498.0,66497.0,0.73193966]
[1729681751758,0.000823,66498.0,66497.0,0.72993966]
[1729681752465,0.000823,66498.0,66497.0,0.61853436]
[1729681752916,0.000823,66498.0,66497.0,0.71853436]
[1729681753910,0.000823,66498.0,66497.0,0.72053436]
[1729681754113,0.000823,66498.0,66497.0,0.70926943]
[1729681754564,0.000823,66498.0,66497.0,0.73053371]
[1729681757515,0.000823,66498.0,66497.0,0.71926943]
[1729681757650,0.000823,66498.0,66497.0,0.73052365]
[1729681758559,0.000823,66498.0,66497.0,0.71926943]
[1729681758783,0.000823,66498.0,66497.0,0.93004722]
[1729681759424,0.000823,66498.0,66497.0,0.73052165]
[1729681761293,0.000823,66498.0,66497.0,0.92988214]
[1729681761706,0.000823,66498.0,66497.0,0.73052165]
[1729681764489,0.000823,66498.0,66497.0,0.84192695]
[1729681765180,0.000823,66498.0,66497.0,0.79065465]
[1729681766032,0.000823,66498.0,66497.0,0.98984024]
[1729681766491,0.000823,66498.0,66497.0,0.77940243]
[1729681766692,0.000823,66498.0,66497.0,0.7906453]
[1729681768454,0.000823,66498.0,66497.0,0.7906478]
[1729681770429,0.000823,66498.0,66497.0,0.8419201]
[1729681771457,0.000823,66498.0,66497.0,0.8720301]
[1729681771719,0.000823,66498.0,66497.0,0.7305148]
[1729681775994,0.000823,66498.0,66497.0,0.71926943]
[1729681776201,0.000823,66498.0,66497.0,0.73052032]
[1729681781101,0.000823,66498.0,66497.0,0.71926943]
[1729681781288,0.000823,66498.0,66497.0,0.73052739]
[1729681782236,0.000823,66498.0,66497.0,0.92974297]
[1729681782875,0.000823,66498.0,66497.0,0.73052739]
[1729681783323,0.001704,66500.0,66499.0,0.01356562]
[1729681783528,0.001704,66500.0,66499.0,0.49813799]
[1729681783942,0.001704,66500.0,66499.0,0.69736937]
[1729681784414,0.001704,66500.0,66499.0,0.69742035]
[1729681784661,0.001704,66500.0,66499.0,0.49813799]
[1729681785966,0.001704,66500.0,66499.0,0.69744819]
[1729681786167,0.001704,66500.0,66499.0,0.5169187]
[1729681787458,0.001704,66500.0,66499.0,0.71622903]
[1729681787465,0.001704,66500.0,66499.0,0.5169187]
[1729681787471,0.001704,66500.0,66499.0,0.51693239]
[1729681787664,0.001704,66500.0,66499.0,0.7162525]
[1729681788084,0.001704,66500.0,66499.0,0.51693239]
[1729681788736,0.001704,66500.0,66499.0,0.29412179]
[1729681788958,0.001704,66500.0,66499.0,0.60486144]
[1729681789195,0.001704,66500.0,66499.0,0.40552709]
[1729681790282,0.001704,66500.0,66499.0,0.60486325]
[1729681792912,0.001704,66500.0,66499.0,0.4055289]
[1729681794384,0.001704,66500.0,66499.0,0.49145795]
[1729681794591,0.001704,66500.0,66499.0,0.4035289]
[1729681795832,0.001704,66500.0,66499.0,0.4055289]
[1729681796308,0.001704,66500.0,66499.0,0.39425544]
[1729681796526,0.001704,66500.0,66499.0,0.4055303]
[1729681797386,0.001704,66500.0,66499.0,0.60486465]
[1729681798441,0.001704,66500.0,66499.0,0.4055303]
[1729681800394,0.001704,66500.0,66499.0,0.5169356]
[1729681800816,0.001704,66500.0,66499.0,0.6933356]
[1729681801046,0.001704,66500.0,66499.0,0.69333393]
[1729681801271,0.001704,66500.0,66499.0,0.40552863]
[1729681801472,0.001704,66500.0,66499.0,0.28212333]
[1729681801690,0.001704,66500.0,66499.0,0.40352863]
[1729681803754,0.001704,66500.0,66499.0,0.40352558]
[1729681804859,0.001704,66500.0,66499.0,0.50332558]
[1729681806207,0.001704,66500.0,66499.0,0.50132558]
[1729681806922,0.001704,66500.0,66499.0,0.50332558]
[1729681808082,0.001704,66500.0,66499.0,0.50132558]
[1729681808285,0.001704,66500.0,66499.0,0.40552558]
[1729681809700,0.001704,66500.0,66499.0,0.60520096]
[1729681810616,0.001704,66500.0,66499.0,0.60320096]
[1729681810847,0.091504,66511.0,66509.0,0.11297092]
[1729681811118,0.091504,66511.0,66510.0,0.263182]
[1729681811349,0.091504,66511.0,66510.0,0.27444794]
[1729681811812,0.091504,66511.0,66510.0,0.16176975]
[1729681812039,0.092327,66511.0,66510.0,0.27444666]
[1729681814117,0.19833099,66523.0,66510.0,0.22937722]
[1729681814351,0.023,66522.0,66513.0,0.04507165]
[1729681814576,0.023,66522.0,66514.0,0.16177114]
[1729681814803,0.023,66522.0,66515.0,0.01126733]
[1729681815039,0.023,66522.0,66516.0,0.16177114]
[1729681815261,0.023,66522.0,66517.0,0.01126733]
[1729681815485,0.023,66522.0,66518.0,0.16177114]
[1729681815710,0.023,66522.0,66519.0,0.01126733]
[1729681815936,0.023,66522.0,66520.0,0.16177114]
[1729681816197,0.023,66522.0,66521.0,0.01126733]
[1729681816421,0.023,66522.0,66521.0,0.16177114]
[1729681817118,0.1959,66522.0,66521.0,0.16177114]
[1729681818027,0.1959,66522.0,66521.0,0.15050381]
[1729681818263,0.1959,66522.0,66521.0,0.16177352]
[1729681818484,0.1959,66522.0,66521.0,0.15050381]
[1729681818990,0.1959,66522.0,66521.0,0.16177427]
[1729681822268,0.42214498,66522.0,66521.0,0.16177427]
[1729681822502,0.43714498,66522.0,66521.0,0.01127046]
[1729681822745,0.43714498,66522.0,66504.0,0.22556561]
[1729681822746,0.023,66505.0,66504.0,0.22556561]
[1729681822982,0.023,66505.0,66504.0,0.38734436]
[1729681823218,0.19633438,66505.0,66504.0,0.01127494]
[1729681823660,0.023,66504.0,66499.0,0.01126635]
[1729681823893,0.023,66504.0,66500.0,0.15050381]
[1729681824116,0.023,66504.0,66501.0,0.01126635]
[1729681824366,0.023,66504.0,66501.0,0.16177016]
[1729681824589,0.023,66502.0,66501.0,0.15050381]
[1729681835776,0.02643438,66502.0,66501.0,0.15050381]
[1729681836690,0.02643438,66502.0,66501.0,0.15214981]
[1729681848539,0.02625346,66502.0,66501.0,0.15214981]
[1729681851252,0.02625346,66502.0,66501.0,0.16340053]
[1729681853115,0.02625346,66502.0,66501.0,0.15214981]
[1729681853335,0.02625346,66502.0,66501.0,0.16343011]
[1729681853764,0.03125346,66502.0,66501.0,0.0129263]
[1729681853992,0.32885876,66502.0,66501.0,0.001646]
[1729681854212,0.33385876,66502.0,66501.0,0.001646]
[1729681856023,5.21597776,66502.0,66501.0,0.001646]
[1729681856544,5.21797776,66502.0,66501.0,0.001646]
[1729681857394,5.26475455,66502.0,66501.0,0.001646]
[1729681858018,5.41525836,66502.0,66501.0,0.001646]
[1729681858696,5.36475455,66502.0,66501.0,0.001646]
[1729681861550,5.40952577,66502.0,66501.0,0.001646]
[1729681861755,5.43192761,66502.0,66501.0,0.001646]
[1729681862175,5.40952672,66502.0,66501.0,0.001646]
[1729681862383,5.36275455,66502.0,66501.0,0.001646]
[1729681862599,5.25134925,66502.0,66501.0,0.001646]
[1729681862799,5.36275455,66502.0,66501.0,0.001646]
[1729681863001,5.31597776,66502.0,66501.0,0.001646]
[1729681863222,5.46648157,66502.0,66501.0,0.001646]
[1729681863452,5.31597776,66502.0,66501.0,0.001646]
[1729681864099,5.20457246,66502.0,66501.0,0.001646]
[1729681864364,5.36269957,66502.0,66501.0,0.001646]
[1729681864583,5.31597776,66502.0,66501.0,0.001646]
[1729681865029,5.36269395,66502.0,66501.0,0.001646]
[1729681865252,5.31597776,66502.0,66501.0,0.001646]
[1729681865449,5.36268928,66502.0,66501.0,0.001646]
[1729681865648,5.40746955,66502.0,66501.0,0.001646]
[1729681865899,5.31597776,66502.0,66501.0,0.001646]
[1729681866120,5.46648157,66502.0,66501.0,0.001646]
[1729681866539,5.5112807,66502.0,66501.0,0.001646]
[1729681867413,5.46648157,66502.0,66501.0,0.001646]
[1729681868420,5.53368026,66502.0,66501.0,0.001646]
[1729681869337,5.38317645,66502.0,66501.0,0.001646]
[1729681870601,5.27177115,66502.0,66501.0,0.001646]
[1729681870784,5.38317645,66502.0,66501.0,0.001646]
[1729681871462,5.38323822,66502.0,66501.0,0.001646]
[1729681875402,5.31597776,66502.0,66501.0,0.001646]
[1729681875812,5.2494159,66502.0,66501.0,0.001646]
[1729681876044,5.3608212,66502.0,66501.0,0.001646]
[1729681876250,5.36082198,66502.0,66501.0,0.001646]
[1729681877952,5.36282198,66502.0,66501.0,0.001646]
[1729681878673,5.43197547,66502.0,66501.0,0.001646]
[1729681879533,5.42997547,66502.0,66501.0,0.001646]
[1729681880878,5.43197547,66502.0,66501.0,0.001646]
[1729681881934,5.42997547,66502.0,66501.0,0.001646]
[1729681883235,5.43197547,66502.0,66501.0,0.001646]
[1729681883449,5.36471501,66502.0,66501.0,0.001646]
[1729681883699,5.36553801,66502.0,66501.0,0.001646]
[1729681883931,5.70224574,66502.0,66501.0,0.001646]
[1729681884141,5.61880288,66502.0,66501.0,0.001646]
[1729681884355,5.62080288,66502.0,66501.0,0.001646]
[1729681884567,5.62080288,66502.0,66501.0,0.00156158]
[1729681884779,5.61880288,66502.0,66501.0,0.00156158]
[1729681884998,5.52912227,66502.0,66501.0,0.00156158]
[1729681885422,5.6195174,66502.0,66501.0,0.00156158]
[1729681885659,5.52912227,66502.0,66501.0,0.00156158]
[1729681885903,5.61884655,66502.0,66501.0,0.00156158]
[1729681886627,0.44412225,66502.0,66501.0,0.00156158]
[1729681886842,2.42752755,66502.0,66501.0,0.00156158]
[1729681888911,2.40952755,66502.0,66501.0,0.00156158]
[1729681890463,2.31990493,66502.0,66501.0,0.00156158]
[1729681890684,2.54124113,66502.0,66501.0,0.00156158]
[1729681890930,2.6534517,66502.0,66501.0,0.00156158]
[1729681891374,2.6554517,66502.0,66501.0,0.00156158]
[1729681891636,2.54324113,66502.0,66501.0,0.00156158]
[1729681892154,2.54124113,66502.0,66501.0,0.00156158]
[1729681892603,2.43131023,66502.0,66501.0,0.00156158]
[1729681893969,2.43331023,66502.0,66501.0,0.00156158]
[1729681897195,2.43131023,66502.0,66501.0,0.00156158]
[1729681899210,2.56596292,66502.0,66501.0,0.00156158]
[1729681899653,2.56623651,66502.0,66501.0,0.00156158]
[1729681899654,2.66373409,66502.0,66501.0,0.00156158]
[1729681899874,2.66406507,66502.0,66501.0,0.00156158]
[1729681900773,2.66606507,66502.0,66501.0,0.00156158]
[1729681901887,2.44125447,66502.0,66501.0,0.00156158]
[1729681902148,0.43341691,66502.0,66501.0,0.07966158]